Workbook

Sheet Hoja1
A1: DESEMBARQUE DE RECURSOS MARÍTIMOS, SEGÚN PUERTO, 2005 - 2012
A2: (Tonelada Métrica Bruta)
A3: Puerto | B3: 2005 | C3: 2006 | D3: 2007 | E3: 2008 | F3: 2009 | G3: 2010 | H3: 2011 | I3: 2012
A4: Zorritos | B4: 3929 | C4: 1128 | D4: 1825 | E4: 2107 | F4: 2424 | G4: 2988 | H4: 3898 | I4: 2984
A5: Máncora | B5: 7410 | C5: 2297 | D5: 2899 | E5: 4655 | F5: 3074 | G5: 13079 | H5: 9378 | I5: 3675
A6: Paita | B6: 407020 | C6: 513873 | D6: 659106 | E6: 693498 | F6: 469537 | G6: 475091 | H6: =531184+28653 -> 559837 | I6: 482995
A7: Sechura/Parachique | B7: 205382 | C7: 113380 | D7: 163390 | E7: 152081 | F7: 89995 | G7: 88983 | H7: =145080+48260 -> 193340 | I7: 129474
A8: Bayóvar | B8: 302063 | C8: 153551 | D8: 196008 | E8: 169833 | F8: 181286 | G8: 92805 | H8: 203959 | I8: 115841
A9: San José | B9: 7067 | C9: 5127 | D9: 3146 | E9: 7592 | F9: 6713 | G9: 5060 | H9: 6163 | I9: 3527
A10: Pimentel/Santa Rosa | B10: 8585 | C10: 10004 | D10: 8379 | E10: 9350 | F10: 6819 | G10: 3815 | H10: 2904 | I10: 3716
A11: Chicama | B11: 575440 | C11: 697587 | D11: 821412 | E11: 719997 | F11: 482577 | G11: 482504 | H11: 465116 | I11: 566003
A12: Salaverry | B12: 3425 | C12: 5083 | D12: 2264 | E12: 1089 | F12: 1622 | G12: 3784 | H12: 7789 | I12: 7556
A13: Chimbote | B13: 1326799 | C13: 988673 | D13: 1072047 | E13: 1026373 | F13: 938015 | G13: 737369 | H13: 1007772 | I13: 679694
A14: Coishco | B14: 449618 | C14: 424297 | D14: 419314 | E14: 393144 | F14: 473242 | G14: 257247 | H14: 396464 | I14: 276993
A15: Casma | B15: 157839 | C15: 80453 | D15: 28937 | E15: 51975 | F15: 10958 | G15: 6710 | H15: =120+6454 -> 6574 | I15: 6067
A16: Samanco | B16: 179287 | C16: 153155 | D16: 131775 | E16: 143657 | F16: 195617 | G16: 142641 | H16: =95461+5370 -> 100831 | I16: 92084
A17: Huarmey | B17: 255961 | C17: 173012 | D17: 155712 | E17: 203033 | F17: 278921 | G17: 128192 | H17: =127004+1062 -> 128066 | I17: 46770
A18: Culebras | B18: 78245 | C18: 41907 | D18: 39154 | E18: 26181 | F18: 3354 | G18: 3174 | H18: 3304 | I18: 2765
A19: Supe/Vidal | B19: 632956 | C19: 356334 | D19: 337642 | E19: 391531 | F19: 359275 | G19: 94924 | H19: =429825+3558 -> 433383 | I19: 112998
A20: Végueta | B20: 441318 | C20: 220164 | D20: 217457 | E20: 247413 | F20: 240389 | G20: 34404 | H20: =293828+7887 -> 301715 | I20: 80756
A21: Huacho/Carquín | B21: 236233 | C21: 152421 | D21: 154906 | E21: 183810 | F21: 135397 | G21: 44860 | H21: =200522+29700+7541 -> 237763 | I21: 85851
A22: Chancay | B22: 788198 | C22: 496253 | D22: 432570 | E22: 425423 | F22: 378326 | G22: 196273 | H22: =703127+368 -> 703495 | I22: 290569
A23: Callao | B23: 629268 | C23: 469953 | D23: 476124 | E23: 517122 | F23: 627799 | G23: 378276 | H23: =944500+6189 -> 950689 | I23: 510282
A24: Pucusana | B24: 9024 | C24: 13072 | D24: 8231 | E24: 14049 | F24: 14379 | G24: 10195 | H24: 14753 | I24: 22992
A25: Tambo de Mora | B25: 314876 | C25: 176233 | D25: 188910 | E25: 310553 | F25: 292541 | G25: 139617 | H25: =474464+97 -> 474561 | I25: 197055
A26: Pisco/San Andrés | B26: 967611 | C26: 500299 | D26: 371439 | E26: 509619 | F26: 833924 | G26: 388825 | H26: =1098998+1850+9093 -> 1109941 | I26: 489894
A27: Lomas | B27: 5041 | C27: 3663 | D27: 3540 | E27: 2010 | F27: 2211 | G27: 3875 | H27: 1208 | I27: 2394
A28: Atico | B28: 234570 | C28: 127120 | D28: 146053 | E28: 133376 | F28: 168664 | G28: 23550 | H28: =113382+267 -> 113649 | I28: 85102
A29: La Planchada | B29: 201443 | C29: 149133 | D29: 134307 | E29: 175544 | F29: 99674 | G29: 21483 | H29: =97190+1029 -> 98219 | I29: 76158
A30: Quilca | B30: - | C30: - | D30: - | E30: - | F30: 15355 | G30: 4474 | H30: =13574+967 -> 14541 | I30: 3228
A31: Mollendo | B31: 83342 | C31: 101059 | D31: 117588 | E31: 81524 | F31: 58425 | G31: 8614 | H31: 61818 | I31: 40624
A32: Matarani | B32: 127789 | C32: 100440 | D32: 131234 | E32: 112562 | F32: 67177 | G32: 15092 | H32: =90469+4959 -> 95428 | I32: 63887
A33: Ilo | B33: 485343 | C33: 519553 | D33: 528617 | E33: 453657 | F33: 231564 | G33: 289167 | H33: =301463+16457 -> 317920 | I33: 148603
A34: Otros | B34: 228224 | C34: 234239 | D34: 224713 | E34: 200149 | F34: 205150 | G34: 124022 | H34: 187240 | I34: 177030
A35: Total | B35: =SUM(B4:B34) -> 9353306 | C35: 6983463 | D35: 7178699 | E35: 7362907 | F35: 6874404 | G35: 4221093 | H35: 8211718 | I35: 4807567

Sheet Hoja2
A1: GRÁFICO DE DESEMBARQUE DE RECURSOS MARÍTIMOS, SEGÚN PUERTO, 2010-2012
